fUST/lending_fUST_20250730
["ID","MTS","AMOUNT","RATE_DAILY","PERIOD"]
[376098474,1753863039165,-460.0,0.00019667,2]
[376098475,1753863039174,-464.57036715,0.00019668,2]
[376098476,1753863039186,-460.0,0.00019668,2]
[376098477,1753863039196,-460.0,0.00019668,2]
[376098478,1753863039206,-460.0,0.00019668,2]
[376098479,1753863039215,-460.0,0.00019668,2]
[376098481,1753863039225,-460.0,0.00019668,2]
[376098483,1753863039234,-460.0,0.00019668,2]
[376098485,1753863039244,-769.55,0.00019668,2]
[376098487,1753863039253,-460.0,0.00019668,2]
[376098489,1753863039263,-460.0,0.00019668,2]
[376098491,1753863039273,-460.0,0.00019668,2]
[376098493,1753863039282,-460.0,0.00019668,2]
[376098495,1753863039292,-460.0,0.00019668,2]
[376098497,1753863039302,-460.0,0.00019668,2]
[376098499,1753863039311,-460.0,0.00019668,2]
[376098501,1753863039321,-606.77581791,0.00019669,2]
[376098503,1753863039330,-465.31979679,0.00019669,2]
[376098505,1753863039340,-460.0,0.00019669,2]
[376098507,1753863039350,-460.0,0.00019669,2]
[376098510,1753863039359,-460.0,0.0001967,2]
[376098513,1753863039368,-460.0,0.0001967,2]
[376098516,1753863039378,-1098.15,0.0001967,2]
[376098519,1753863039388,-465.20305642,0.0001967,2]
[376098522,1753863039398,-460.0,0.0001967,2]
[376098526,1753863039407,-460.0,0.0001967,2]
[376098530,1753863039416,-460.0,0.0001967,2]
[376098532,1753863039426,-475.13828488,0.0001967,2]
[376098534,1753863039435,-500.0,0.00019671,2]
[376098536,1753863039444,-460.0,0.00019671,2]
[376098538,1753863039454,-460.0,0.00019671,2]
[376098540,1753863039464,-2475.74,0.00019671,2]
[376098542,1753863039473,-460.0,0.00019671,2]
[376098544,1753863039483,-569.93,0.00019671,2]
[376098546,1753863039492,-1000.0,0.00019721,2]
[376098548,1753863039502,-1000.0,0.00019721,2]
[376098550,1753863039511,-1000.0,0.00019721,2]
[376098552,1753863039520,-1000.0,0.00019721,2]
[376098554,1753863039532,-546.39983453,0.00019721,2]
[376098556,1753863039543,-1000.0,0.00019721,2]
[376098558,1753863039552,-1000.0,0.00019721,2]
[376098560,1753863039561,-501.62526512,0.00019721,2]
[376098562,1753863039571,-505.18533777,0.00019721,2]
[376098564,1753863039581,-500.83420291,0.00019721,2]
[376098566,1753863039593,-1000.0,0.00019721,2]
[376098569,1753863039603,-1000.0,0.00019721,2]
[376098570,1753863039612,-3287.97149308,0.000199,2]
[376098572,1753863039622,-1384.04,0.0001994,2]
[376098574,1753863039632,-460.0,0.0001994,2]
[376098577,1753863039642,-460.0,0.0001994,2]
[376098579,1753863039651,-460.0,0.0001994,2]
[376098580,1753863039661,-1181.35,0.0001994,2]
[376098583,1753863039671,-460.0,0.0001994,2]
[376098585,1753863039681,-460.0,0.0001994,2]
[376098586,1753863039691,-460.0,0.0001994,2]
[376098588,1753863039700,-460.0,0.0001994,2]
[376098591,1753863039710,-522.64,0.0001994,2]
[376098593,1753863039719,-460.0,0.0001994,2]
[376098595,1753863039729,-460.0,0.00019941,2]
[376098596,1753863039738,-452.61209111,0.00019941,2]
[376098598,1753863039748,-460.0,0.00019941,2]
[376098600,1753863039758,-460.0,0.00019941,2]
[376098603,1753863039768,-460.0,0.00019941,2]
[376098605,1753863039777,-1822.42,0.00019941,2]
[376098607,1753863039787,-460.0,0.00019941,2]
[376098608,1753863039797,-460.0,0.00019941,2]
[376098610,1753863039807,-460.0,0.00019941,2]
[376098613,1753863039817,-460.0,0.00019941,2]
[376098614,1753863039826,-460.0,0.00019941,2]
[376098617,1753863039837,-460.0,0.00019941,2]
[376098618,1753863039847,-460.0,0.00019941,2]
[376098620,1753863039857,-232.8,0.00019941,2]
[376098622,1753863039866,-460.0,0.00019941,2]
[376098624,1753863039876,-460.0,0.00019941,2]
[376098626,1753863039885,-460.0,0.00019941,2]
[376098628,1753863039894,-460.0,0.00019941,2]
[376098630,1753863039904,-309.2,0.00019941,2]
[376098633,1753863039914,-460.0,0.00019941,2]
[376098635,1753863039924,-460.0,0.00019941,2]
[376098637,1753863039934,-834.99,0.00019941,2]
[376098638,1753863039943,-460.0,0.00019941,2]
[376098640,1753863039953,-256.98,0.00019941,2]
[376098642,1753863039962,-460.0,0.00019941,2]
[376098644,1753863039972,-460.0,0.00019942,2]
[376098647,1753863039982,-460.0,0.00019942,2]
[376098649,1753863039992,-460.0,0.00019942,2]
[376098651,1753863040002,-460.0,0.00019942,2]
[376098652,1753863040011,-426.4457018,0.00019942,2]
[376098655,1753863040022,-460.0,0.00019942,2]
[376098656,1753863040031,-769.55,0.00019942,2]
[376098659,1753863040041,-460.0,0.00019942,2]
[376098661,1753863040050,-460.0,0.00019942,2]
[376098663,1753863040060,-460.0,0.00019942,2]
[376098665,1753863040070,-465.36877959,0.00019942,2]
[376098667,1753863040081,-460.0,0.00019942,2]
[376098669,1753863040092,-460.0,0.00019942,2]
[376098671,1753863040102,-460.0,0.00019942,2]
[376098673,1753863040115,-460.0,0.00019944,2]
[376098675,1753863040126,-460.0,0.00019944,2]
[376098676,1753863040136,-1098.15,0.00019944,2]
[376098679,1753863040145,-460.0,0.00019944,2]
[376098681,1753863040157,-460.0,0.00019944,2]
[376098683,1753863040167,-460.0,0.00019944,2]
[376098684,1753863040176,-460.0,0.00019945,2]
[376098687,1753863040187,-460.0,0.00019945,2]
[376098689,1753863040197,-2475.74,0.00019945,2]
[376098691,1753863040206,-460.0,0.00019945,2]
[376098693,1753863040216,-569.93,0.00019945,2]
[376098695,1753863040225,-216.14611358,0.00020053,2]
[376098696,1753863040234,-160.0,0.00020053,2]
[376098699,1753863040244,-841.2246943,0.00020053,2]
[376098701,1753863040254,-231.43925844,0.00020053,2]
[376098703,1753863040264,-160.0,0.00020053,2]
[376098704,1753863040273,-214.95885286,0.00020053,2]
[376098707,1753863040283,-160.0,0.00020053,2]
[376098709,1753863040294,-460.59675358,0.00020054,2]
[376098711,1753863040304,-160.0,0.00020054,2]
[376098713,1753863040314,-526.76118213,0.00020054,2]
[376098715,1753863040323,-500.0,0.00020095,2]
[376098717,1753863040334,-500.0,0.00020095,2]
[376098718,1753863040347,-645.00793927,0.00020095,2]
[376098721,1753863040357,-500.0,0.00020095,2]
[376098722,1753863040366,-500.0,0.00020095,2]
[376098724,1753863040376,-500.0,0.00020095,2]
[376098726,1753863040386,-500.0,0.00020095,2]
[376098729,1753863040396,-500.0,0.00020095,2]
[376098731,1753863040406,-500.0,0.00020095,2]
[376098733,1753863040416,-500.0,0.00020095,2]
[376098734,1753863040426,-500.0,0.00020095,2]
[376098736,1753863040436,-500.0,0.00020095,2]
[376098739,1753863040446,-500.0,0.00020095,2]
[376098741,1753863040455,-161.86565959,0.00020095,2]
[376098743,1753863040465,-503.56560902,0.00020095,2]
[376098755,1753863040475,-500.0,0.0002011,2]
[376098758,1753863040596,-500.0,0.0002011,2]
[376098760,1753863040605,-500.0,0.0002011,2]
[376098762,1753863040616,-500.0,0.0002011,2]
[376098764,1753863040625,-642.64430472,0.0002011,2]
[376098766,1753863040635,-500.0,0.0002011,2]
[376098768,1753863040645,-500.0,0.0002011,2]
[376098770,1753863040655,-500.0,0.0002011,2]
[376098772,1753863040666,-348.32221385,0.0002011,2]
[376098774,1753863040675,-294.88550665,0.0002011,2]
[376098776,1753863040686,-501.73298884,0.0002011,2]
[376098778,1753863040696,-4415.32629687,0.0002012,2]
[376098780,1753863040705,-500.0,0.00020126,2]
[376098782,1753863040715,-500.0,0.00020126,2]
[376098784,1753863040725,-164.33151602,0.0002014,2]
[376098786,1753863040734,-3287.97149296,0.00020141,2]
[376098788,1753863040744,-160.0,0.00020186,2]
[376098790,1753863040753,-211.662697,0.00020187,2]
[376098792,1753863040763,-1384.04,0.00020214,2]
[376098794,1753863040772,-413.65,0.00020214,2]
[376098796,1753863040782,-1181.35,0.00020214,2]
[376098798,1753863040792,-212.84,0.00020214,2]
[376098800,1753863040802,-470.35,0.00020214,2]
[376098802,1753863040813,-415.44,0.00020214,2]
[376098804,1753863040822,-522.64,0.00020214,2]
[376098806,1753863040831,-460.0,0.00020214,2]
[376098808,1753863040843,-460.0,0.00020215,2]
[376098810,1753863040855,-460.0,0.00020215,2]
[376098812,1753863040864,-1822.42,0.00020215,2]
[376098815,1753863040874,-460.0,0.00020215,2]
[376098816,1753863040884,-460.0,0.00020215,2]
[376098819,1753863040893,-460.0,0.00020215,2]
[376098821,1753863040903,-216.8,0.00020215,2]
[376098822,1753863040912,-460.0,0.00020215,2]
[376098824,1753863040922,-460.0,0.00020215,2]
[376098826,1753863040932,-460.0,0.00020215,2]
[376098828,1753863040942,-460.0,0.00020215,2]
[376098830,1753863040951,-460.0,0.00020215,2]
[376098832,1753863040960,-460.0,0.00020215,2]
[376098834,1753863040971,-834.99,0.00020215,2]
[376098836,1753863040980,-460.0,0.00020215,2]
[376098838,1753863040991,-460.0,0.00020215,2]
[376098840,1753863041001,-460.0,0.00020216,2]
[376098842,1753863041010,-501.0,0.00020216,2]
[376098844,1753863041020,-196.45,0.00020216,2]
[376098846,1753863041030,-460.0,0.00020216,2]
[376098848,1753863041040,-769.55,0.00020216,2]
[376098850,1753863041050,-460.0,0.00020216,2]
[376098852,1753863041060,-460.0,0.00020216,2]
[376098854,1753863041069,-460.0,0.00020216,2]
[376098856,1753863041078,-460.0,0.00020216,2]
[376098858,1753863041089,-460.0,0.00020218,2]
[376098859,1753863041099,-460.0,0.00020218,2]
[376098862,1753863041112,-1098.15,0.00020218,2]
[376098863,1753863041122,-250.9,0.00020218,2]
[376098866,1753863041132,-460.0,0.00020218,2]
[376098867,1753863041142,-460.0,0.00020218,2]
[376098869,1753863041151,-460.0,0.00020219,2]
[376098871,1753863041162,-2475.74,0.00020219,2]
[376098873,1753863041172,-460.0,0.00020219,2]
[376098875,1753863041185,-569.93,0.00020219,2]
[376098877,1753863041195,-393.59923246,0.00020268,2]
[376098879,1753863041205,-358.45193933,0.00020268,2]
[376098881,1753863041214,-1346.82045989,0.00020268,2]
[376098883,1753863041224,-1500.0,0.00020268,2]
[376098885,1753863041234,-1500.0,0.00020268,2]
[376098887,1753863041243,-500.0,0.00020268,2]
[376098889,1753863041253,-312.99359495,0.00020286,2]
[376098891,1753863041262,-3287.97149296,0.00020383,3]
[376098893,1753863041272,-1384.04,0.00020488,2]
[376098895,1753863041281,-1181.35,0.00020488,2]
[376098897,1753863041291,-522.64,0.00020488,2]
[376098899,1753863041300,-460.0,0.00020488,2]
[376098901,1753863041309,-460.0,0.00020489,2]
[376098903,1753863041320,-1822.42,0.00020489,2]
[376098905,1753863041329,-460.0,0.00020489,2]
[376098907,1753863041339,-448.1,0.00020489,2]
[376098909,1753863041349,-460.0,0.00020489,2]
[376098911,1753863041359,-425.1,0.00020489,2]
[376098913,1753863041368,-460.0,0.00020489,2]
[376098915,1753863041378,-460.0,0.00020489,2]
[376098917,1753863041387,-460.0,0.00020489,2]
[376098919,1753863041403,-351.04,0.00020489,2]
[376098921,1753863041415,-834.99,0.00020489,2]
[376098923,1753863041424,-337.0,0.00020489,2]
[376098925,1753863041434,-460.0,0.0002049,2]
[376098927,1753863041444,-460.0,0.0002049,2]
[376098929,1753863041453,-769.55,0.0002049,2]
[376098931,1753863041462,-460.0,0.0002049,2]
[376098933,1753863041471,-460.0,0.0002049,2]
[376098935,1753863041481,-460.0,0.0002049,2]
[376098937,1753863041490,-1098.15,0.00020492,2]
[376098939,1753863041499,-460.0,0.00020492,2]
[376098941,1753863041509,-460.0,0.00020492,2]
[376098943,1753863041519,-460.0,0.00020493,2]
[376098945,1753863041530,-2475.74,0.00020493,2]
[376098947,1753863041539,-460.0,0.00020493,2]
[376098949,1753863041548,-569.93,0.00020493,2]
[376098951,1753863041558,-262.28996092,0.00020509,2]
[376098953,1753863041567,-500.0,0.00020548,2]
[376098955,1753863041576,-3287.97149296,0.00020624,3]
[376098957,1753863041586,-1000.0,0.00020643,2]
[376098959,1753863041595,-456.96828516,0.00020643,2]
[376098961,1753863041604,-1000.0,0.00020643,2]
[376098963,1753863041614,-1000.0,0.00020643,2]
[376098965,1753863041625,-1012.94208982,0.00020643,2]
[376098967,1753863041634,-573.52765742,0.00020643,2]
[376098969,1753863041644,-1000.0,0.00020643,2]
[376098971,1753863041653,-1000.0,0.00020643,2]
[376098973,1753863041662,-1000.0,0.00020658,2]
[376098975,1753863041672,-1000.0,0.00020658,2]
[376098977,1753863041681,-506.5191804,0.00020658,2]
[376098978,1753863041691,-500.0,0.00020674,2]
[376098980,1753863041700,-260.0,0.00020734,2]
[376098982,1753863041711,-1384.04,0.00020762,2]
[376098984,1753863041720,-1181.35,0.00020762,2]
[376098986,1753863041729,-522.64,0.00020762,2]
[376098988,1753863041738,-460.0,0.00020762,2]
[376098990,1753863041748,-460.0,0.00020763,2]
[376098992,1753863041757,-1822.42,0.00020763,2]
[376098994,1753863041767,-405.9,0.00020763,2]
[376098996,1753863041776,-460.0,0.00020763,2]
[376098998,1753863041786,-460.0,0.00020763,2]
[376099000,1753863041795,-460.0,0.00020763,2]
[376099002,1753863041805,-460.0,0.00020763,2]
[376099004,1753863041815,-834.99,0.00020763,2]
[376099006,1753863041824,-460.0,0.00020764,2]
[376099008,1753863041834,-460.0,0.00020764,2]
[376099010,1753863041843,-769.55,0.00020764,2]
[376099012,1753863041853,-588.22,0.00020764,2]
[376099014,1753863041862,-460.0,0.00020764,2]
[376099016,1753863041871,-460.0,0.00020764,2]
[376099018,1753863041881,-460.0,0.00020766,2]
[376099020,1753863041891,-460.0,0.00020766,2]
[376099022,1753863041900,-460.0,0.00020767,2]
[376099024,1753863041910,-2475.74,0.00020767,2]
[376099026,1753863041919,-460.0,0.00020767,2]
[376099028,1753863041929,-569.93,0.00020767,2]
[376099030,1753863041939,-1446.89120276,0.00020816,2]
[376099032,1753863041948,-2000.0,0.00020816,2]
[376099034,1753863041959,-3287.97149296,0.00020866,4]
[376099036,1753863041969,-800.0,0.00020896,2]
[376099038,1753863041978,-204.3,0.00020897,3]
[376099040,1753863041987,-500.0,0.00021,2]
[376099042,1753863041996,-500.0,0.00021,2]
[376099044,1753863042005,-3000.0,0.00021,2]
[376099046,1753863042015,-3000.0,0.0002101,2]
[376099047,1753863042024,-3000.0,0.0002102,2]
[376099050,1753863042034,-3000.0,0.0002103,2]
[376099052,1753863042043,-500.0,0.00021035,2]
[376099053,1753863042053,-500.0,0.00021035,2]
[376099056,1753863042062,-500.0,0.00021035,2]
[376099057,1753863042072,-500.0,0.00021035,2]
[376099059,1753863042081,-500.0,0.00021035,2]
[376099061,1753863042097,-1384.04,0.00021036,2]
[376099063,1753863042107,-1181.35,0.00021036,2]
[376099066,1753863042120,-522.64,0.00021036,2]
[376099067,1753863042130,-460.0,0.00021036,2]
[376099069,1753863042139,-497.76,0.00021037,2]
[376099071,1753863042148,-1822.42,0.00021037,2]
[376099073,1753863042159,-460.0,0.00021037,2]
[376099075,1753863042169,-460.0,0.00021037,2]
[376099078,1753863042179,-460.0,0.00021037,2]
[376099079,1753863042190,-416.41,0.00021037,2]
[376099082,1753863042200,-834.99,0.00021037,2]
[376099083,1753863042209,-460.0,0.00021038,2]
[376099085,1753863042219,-472.58,0.00021038,2]
[376099088,1753863042229,-769.55,0.00021038,2]
[376099089,1753863042239,-460.0,0.00021038,2]
[376099091,1753863042248,-460.0,0.00021038,2]
[376099093,1753863042257,-3000.0,0.0002104,2]
[376099095,1753863042267,-460.0,0.0002104,2]
[376099097,1753863042276,-460.0,0.0002104,2]
[376099099,1753863042285,-460.0,0.00021041,2]
[376099101,1753863042295,-2475.74,0.00021041,2]
[376099102,1753863042304,-460.0,0.00021041,2]
[376099103,1753863042313,-569.93,0.00021041,2]
[376099104,1753863042323,-3000.0,0.0002105,2]
[376099105,1753863042332,-3000.0,0.0002106,2]
[376099106,1753863042349,-3000.0,0.0002107,2]
[376099107,1753863042364,-3000.0,0.0002108,2]
[376099108,1753863042373,-3000.0,0.0002109,2]
[376099109,1753863042383,-3000.0,0.000211,2]
[376099110,1753863042392,-200.0,0.00021106,15]
[376099111,1753863042401,-200.0,0.00021106,15]
[376099112,1753863042411,-200.0,0.00021106,15]
[376099113,1753863042420,-200.0,0.00021106,15]
[376099114,1753863042430,-200.0,0.00021106,15]
[376099115,1753863042440,-200.0,0.00021106,15]
[376099116,1753863042449,-200.0,0.00021106,15]
[376099117,1753863042459,-200.0,0.00021106,15]
[376099118,1753863042468,-200.0,0.00021106,15]
[376099119,1753863042477,-200.0,0.00021106,15]
[376099120,1753863042487,-200.0,0.00021106,15]
[376099121,1753863042497,-200.0,0.00021106,15]
[376099122,1753863042506,-200.0,0.00021106,15]
[376099123,1753863042515,-200.0,0.00021106,15]
[376099124,1753863042524,-200.0,0.00021106,15]
[376099125,1753863042534,-200.0,0.00021106,15]
[376099126,1753863042543,-200.0,0.00021106,15]
[376099127,1753863042552,-200.0,0.00021106,15]
[376099128,1753863042561,-200.0,0.00021106,15]
[376099129,1753863042571,-200.0,0.00021106,15]
[376099130,1753863042580,-200.0,0.00021106,15]
[376099132,1753863042594,-280.0,0.00021106,15]
[376099134,1753863042603,-1690.90895024,0.00021107,4]
[376099137,1753863042622,-1597.06254272,0.00021107,4]
[376099139,1753863042632,-3000.0,0.0002111,2]
[376099141,1753863042642,-3000.0,0.0002112,2]
[376099143,1753863042651,-3000.0,0.0002113,2]
[376099144,1753863042660,-518.75830253,0.0002114,2]
[376099147,1753863042672,-741.26539315,0.0002114,2]
[376099172,1753863042915,-460.0,0.00018845,2]
[376099174,1753863042927,-460.0,0.00018845,2]
[376099176,1753863042936,-1271.181747,0.0001902,2]
[376099178,1753863042945,-1271.181747,0.00019616,2]
[376099183,1753863042981,-315.60694037,0.00019847,2]
[376099184,1753863042990,-214.09503225,0.0001994,2]
[376099186,1753863042999,-421.56190346,0.0001994,2]
[376099189,1753863043010,-78.43809654,0.0001994,2]
[376099191,1753863043020,-385.5605899,0.0001994,2]
[376099193,1753863043030,-559.76303933,0.0001994,2]
[376099195,1753863043039,-500.0,0.0001994,2]
[376099196,1753863043048,-500.0,0.0001994,2]
[376099198,1753863043058,-500.0,0.0001994,2]
[376099200,1753863043068,-500.0,0.0001994,2]
[376099203,1753863043078,-539.66625763,0.0001994,2]
[376099204,1753863043089,-500.0,0.0001994,2]
[376099206,1753863043098,-500.0,0.0001994,2]
[376099209,1753863043110,-634.75194978,0.0001994,2]
[376099211,1753863043121,-500.0,0.0001994,2]
[376099212,1753863043130,-500.0,0.0001994,2]
[376099214,1753863043140,-500.0,0.0001994,2]
[376099216,1753863043150,-500.0,0.0001994,2]
[376099218,1753863043159,-500.0,0.0001994,2]
[376099220,1753863043169,-500.0,0.0001994,2]
[376099222,1753863043178,-315.60694037,0.00020948,2]
[376099224,1753863043190,-1739.97630432,0.0002114,2]
[376099226,1753863043200,-863.81970348,0.0002115,2]
[376099230,1753863043212,-2136.18029652,0.0002115,2]
[376099232,1753863043222,-3000.0,0.0002116,2]
[376099234,1753863043232,-2813.40589027,0.0002117,2]
[376099239,1753863043278,-500.0,0.0001994,2]
[376099241,1753863043287,-500.0,0.0001994,2]
[376099243,1753863043297,-500.0,0.0001994,2]
[376099245,1753863043306,-218.74729591,0.0001994,2]
[376099247,1753863043316,-1271.181747,0.00020212,2]
[376099249,1753863043325,-186.59410973,0.0002117,2]
[376099251,1753863043335,-3000.0,0.0002118,2]
[376099253,1753863043347,-5280.978988,0.0002119,2]
[376099255,1753863043356,-500.0,0.00021191,2]
[376099257,1753863043365,-1500.0,0.00021191,2]
[376099259,1753863043375,-1500.0,0.00021191,2]
[376099261,1753863043384,-387.34131079,0.00021191,2]
[376099263,1753863043394,-1011.5459767,0.00021191,2]
[376099265,1753863043403,-204.3,0.00021201,3]
[376099267,1753863043412,-1500.0,0.00021206,2]
[376099269,1753863043422,-1500.0,0.00021206,2]
[376099271,1753863043431,-360.0,0.00021282,2]
[376099273,1753863043440,-179.78425889,0.00021295,2]
[376099275,1753863043449,-1384.04,0.0002131,2]
[376099277,1753863043458,-1181.35,0.0002131,2]
[376099279,1753863043469,-522.64,0.0002131,2]
[376099281,1753863043478,-460.0,0.0002131,2]
[376099283,1753863043487,-1822.42,0.00021311,2]
[376099285,1753863043497,-155.45,0.00021311,2]
[376099287,1753863043507,-460.0,0.00021311,2]
[376099289,1753863043516,-290.15,0.00021311,2]
[376099291,1753863043526,-834.99,0.00021311,2]
[376099293,1753863043536,-460.0,0.00021312,2]
[376099295,1753863043546,-769.55,0.00021312,2]
[376099297,1753863043556,-460.0,0.00021312,2]
[376099299,1753863043565,-283.25,0.00021314,2]
[376099301,1753863043574,-460.0,0.00021314,2]
[376099303,1753863043584,-518.34,0.00021314,2]
[376099304,1753863043595,-460.0,0.00021315,2]
[376099306,1753863043605,-2475.74,0.00021315,2]
[376099309,1753863043615,-460.0,0.00021315,2]
[376099310,1753863043625,-569.93,0.00021315,2]
[376099312,1753863043635,-3287.97149296,0.00021348,5]
[376099314,1753863043644,-500.0,0.00021364,2]
[376099316,1753863043655,-214.95885286,0.000214,3]
[376099319,1753863043664,-11374.56776495,0.000214,3]
[376099321,1753863043674,-312.16666667,0.000214,3]
[376099323,1753863043684,-160.0,0.000214,3]
[376099325,1753863043694,-500.0,0.00021473,2]
[376099326,1753863043704,-500.0,0.00021473,2]
[376099328,1753863043714,-500.0,0.00021473,2]
[376099330,1753863043726,-500.0,0.00021473,2]
[376099333,1753863043735,-500.48698167,0.00021473,2]
[376099335,1753863043745,-408.14500492,0.00021473,2]
[376099337,1753863043755,-500.0,0.00021473,2]
[376099339,1753863043765,-500.0,0.00021473,2]
[376099340,1753863043776,-500.0,0.00021473,2]
[376099343,1753863043786,-500.0,0.00021473,2]
[376099344,1753863043795,-500.0,0.00021473,2]
[376099346,1753863043804,-1000.0,0.00021479,2]
[376099348,1753863043814,-1000.0,0.00021479,2]
[376099351,1753863043824,-1000.0,0.00021479,2]
[376099353,1753863043833,-1000.0,0.00021479,2]
[376099355,1753863043845,-1000.0,0.00021479,2]
[376099356,1753863043855,-1000.0,0.00021479,2]
[376099359,1753863043865,-1000.0,0.00021479,2]
[376099360,1753863043875,-1000.0,0.00021479,2]
[376099362,1753863043887,-1000.0,0.00021479,2]
[376099365,1753863043897,-1000.0,0.00021479,2]
[376099366,1753863043908,-1000.0,0.00021479,2]
[376099368,1753863043918,-1000.0,0.00021479,2]
[376099370,1753863043928,-1000.0,0.00021479,2]
[376099372,1753863043937,-675.8,0.00021479,2]
[376099375,1753863043948,-500.0,0.00021499,2]
[376099376,1753863043958,-286.03217571,0.00021499,2]
[376099378,1753863043967,-500.0,0.00021499,2]
[376099379,1753863043978,-500.0,0.00021499,2]
[376099381,1753863043987,-398559.03,0.000215,2]
[376099383,1753863043997,-204.3,0.00021504,4]
[376099385,1753863044007,-5000.0,0.00021516,2]
[376099387,1753863044017,-500.0,0.00021548,2]
[376099389,1753863044027,-491.8380123,0.00021583,2]
[376099391,1753863044038,-1000.0,0.00021583,2]
[376099393,1753863044048,-1000.0,0.00021583,2]
[376099395,1753863044058,-532.61838289,0.00021583,2]
[376099397,1753863044067,-1384.04,0.00021584,2]
[376099399,1753863044077,-1181.35,0.00021584,2]
[376099401,1753863044090,-522.64,0.00021584,2]
[376099403,1753863044100,-460.0,0.00021584,2]
[376099405,1753863044112,-1822.42,0.00021585,2]
[376099407,1753863044122,-460.0,0.00021585,2]
[376099409,1753863044132,-834.99,0.00021585,2]
[376099411,1753863044141,-460.0,0.00021586,2]
[376099413,1753863044151,-769.55,0.00021586,2]
[376099414,1753863044162,-460.0,0.00021586,2]
[376099416,1753863044171,-460.0,0.00021588,2]
[376099418,1753863044181,-460.0,0.00021589,2]
[376099420,1753863044192,-2475.74,0.00021589,2]
[376099422,1753863044203,-460.0,0.00021589,2]
[376099424,1753863044212,-569.93,0.00021589,2]
[376099427,1753863044222,-3287.97149296,0.0002159,5]
[376099429,1753863044231,-500.0,0.000216,2]
[376099431,1753863044241,-504.23337199,0.00021657,2]
[376099433,1753863044251,-2000.0,0.00021739,2]
[376099435,1753863044260,-1657.43379372,0.00021754,2]
[376099437,1753863044270,-2000.0,0.00021754,2]
[376099439,1753863044279,-638.096,0.0002176,2]
[376099441,1753863044289,-179.29043487,0.0002176,2]
[376099443,1753863044298,-25000.0,0.00021771,2]
[376099445,1753863044308,-151.0,0.00021771,2]
[376099447,1753863044318,-151.0,0.00021771,2]
[376099449,1753863044327,-151.0,0.00021771,2]
[376099451,1753863044338,-151.0,0.00021771,2]
[376099453,1753863044347,-151.0,0.00021771,2]
[376099455,1753863044356,-151.0,0.00021771,2]
[376099457,1753863044366,-151.0,0.00021771,2]
[376099459,1753863044376,-151.0,0.00021771,2]
[376099461,1753863044386,-151.0,0.00021771,2]
[376099463,1753863044396,-151.0,0.00021771,2]
[376099464,1753863044405,-151.0,0.00021771,2]
[376099466,1753863044416,-151.0,0.00021771,2]
[376099468,1753863044426,-151.0,0.00021771,2]
[376099470,1753863044436,-198.13566607,0.00021771,2]
[376099472,1753863044446,-232.49438452,0.00021781,2]
[376099474,1753863044456,-204.3,0.00021808,4]
[376099476,1753863044466,-460.0,0.0002183,2]
[376099478,1753863044476,-3287.97149296,0.00021831,6]
[376099480,1753863044486,-1384.04,0.00021858,2]
[376099482,1753863044496,-1181.35,0.00021858,2]
[376099484,1753863044506,-522.64,0.00021858,2]